Cogmind - Beta 11.1 @@@ ROGUE MODE // 2022.05.17 @ 22:15:03 Player: Smie Result: Destroyed by S-43 Plague with Heavy Machine Gun Performance ------------- Evolutions (9) 4500 Regions Visited (15) 3000 Robots Destroyed (39) 195 Value Destroyed (1405) 1405 Prototype IDs (9) 180 Alien Tech Used (0) 0 Bonus (1726) 1726 TOTAL SCORE: 11006 Bonus ------- Triggered Max Security 1000 High Alert Combat Kills 330 Follower Combat Kills 96 Aligned with FarCom 300 Cogmind --------- Core Integrity 0/1600 Matter 6/300 Energy 87/100 System Corruption 0% Temperature Cool (0) Movement Core (50) Location -1/Access Parts ------- > --- POWER (2) -------- (None) > --- PROPULSION (6) --- (None) > --- UTILITY (13) ----- Enhanced Optical Array Advanced Signal Interpreter Hacking Suite Hacking Suite Advanced Hacking Suite Advanced Corruption Screen > --- WEAPON (4) ------- (None) > --- INVENTORY (5) ---- Light Quantum Reactor Experimental Focal Shield Beam Splitter Z-bomb Delivery System Peak State ------------ > --- POWER ------------ Light Particle Reactor > --- PROPULSION ------- Field Propulsion Array Impulse Thruster Array > --- UTILITY ---------- Advanced Weight Redist. System Advanced Weight Redist. System Machine Analyzer Enhanced Optical Array Spectral Analyzer Core Analyzer Advanced Transmission Jammer Experimental Focal Shield Hacking Suite Hacking Suite Hacking Suite Advanced Hacking Suite System Shield > --- WEAPON ----------- Enhanced Nova Cannon Light Antimatter Cannon Light Antimatter Cannon > --- INVENTORY -------- Micro Antimatter Reactor Q-thruster Experimental Focal Shield Beam Splitter Z-bomb Delivery System [Rating: 128] Favorites ----------- Power Light Ion Engine Engine Light Ion Engine Power Core Neutrino Core Reactor Graviton Reactor Propulsion Aluminum Leg Treads Advanced Medium Treads Leg Aluminum Leg Wheel Compact Wheel Hover Unit Gyrokinetic Inverter Flight Unit Field Propulsion Array Utility Hacking Suite Device Disposable Heat Sink Storage Small Storage Unit Processor Signal Interpreter Hackware Hacking Suite Protection Improved Medium Armor Plating Weapon AWS/Gauss Energy Gun Quantum Rifle Energy Cannon Enhanced Nova Cannon Ballistic Gun AWS/Gauss Ballistic Cannon Light Antimatter Cannon Launcher Rocket Launcher Build | -11 -10 -10 -10 -9 -8 -7 -7 -7 -6 -5 -4 -3 -2 -2 -1 ------- Run | Scr Mat Min Exi Min Mat Fac Low Low Fac Fac Fac Res Res Tes Acc Slots Evolved 18 | . . . . . 4 2 . . 2 2 2 2 2 . 2 Power 1 | . . . . . . . . . . . 1 . . . . Propulsion 4 | . . . . . 2 . . . . . . . . . 2 Utility 11 | . . . . . 2 2 . . 1 1 1 2 2 . . Weapon 2 | . . . . . . . . . 1 1 . . . . . Parts Attached 96 | 6 1 . 1 2 5 5 1 1 3 12 17 16 9 5 12 Power 11 | 1 . . . . 1 . . 1 . 1 2 3 . 1 1 Engine 4 | 1 . . . . 1 . . 1 . 1 . . . . . Core 1 | . . . . . . . . . . . 1 . . . . Reactor 6 | . . . . . . . . . . . 1 3 . 1 1 Propulsion 25 | 2 . . . 2 2 2 . . . 1 6 2 2 1 5 Treads 5 | . . . . . . . . . . 1 1 . . . 3 Leg 6 | 2 . . . . 2 2 . . . . . . . . . Wheel 6 | . . . . 2 . . . . . . 3 . . . 1 Hover 1 | . . . . . . . . . . . . . . . 1 Flight 7 | . . . . . . . . . . . 2 2 2 1 . Utility 40 | 1 1 . . . 2 3 1 . 1 6 8 6 6 2 3 Device 21 | . 1 . . . 1 2 . . . 5 6 1 3 1 1 Storage 1 | 1 . . . . . . . . . . . . . . . Processor 8 | . . . . . 1 . . . 1 . 1 1 1 1 2 Hackware 6 | . . . . . . . . . . . 1 3 2 . . Protection 4 | . . . . . . 1 1 . . 1 . 1 . . . Artifact . | . . . . . . . . . . . . . . . . Weapon 20 | 2 . . 1 . . . . . 2 4 1 5 1 1 3 Energy Gun 4 | . . . . . . . . . . 2 1 1 . . . Energy Cannon 1 | . . . . . . . . . . . . . 1 . . Ballistic Gun 6 | 2 . . 1 . . . . . 1 1 . 1 . . . Ballistic Cannon 4 | . . . . . . . . . . . . 3 . 1 . Launcher 5 | . . . . . . . . . 1 1 . . . . 3 Special Weapon . | . . . . . . . . . . . . . . . . Impact Weapon . | . . . . . . . . . . . . . . . . Slashing Weapon . | . . . . . . . . . . . . . . . . Piercing Weapon . | . . . . . . . . . . . . . . . . Special Melee Weapon . | . . . . . . . . . . . . . . . . Unidentified Prototypes 9 | . . . 1 . 1 . . . . . . 3 2 1 1 Parts Lost 46 | . . . . . . . . . . 16 . 8 1 8 13 Power 5 | . . . . . . . . . . 1 . 2 . 1 1 Propulsion 14 | . . . . . . . . . . 5 . . 1 2 6 Utility 21 | . . . . . . . . . . 7 . 4 . 4 6 Weapon 6 | . . . . . . . . . . 3 . 2 . 1 . Highest Loss Streak 15 | . . . . . . . . . . 15 . 5 1 8 13 To Critical Strikes 1 | . . . . . . . . . . . . . . . 1 Average Slot Usage (%) 74 | . 90 100 92 85 88 90 92 92 93 60 28 55 68 76 46 Engine 5 | . 14 14 14 14 9 7 7 7 6 3 . . . . . Reactor 1 | . . . . . . . . . . . 4 4 4 4 2 Leg 16 | . 28 28 28 25 18 29 30 30 26 13 . . . . . Wheel 1 | . . . . 2 18 . . . . . 4 1 . . . Flight 2 | . . . . . . . . . . . 5 9 8 8 2 Device 15 | . 5 14 14 14 16 22 23 23 20 15 6 15 12 13 7 Storage 5 | . 14 14 14 14 9 7 7 7 6 2 . . . . . Processor 6 | . . . . . 9 7 7 7 13 8 2 4 12 16 11 Hackware 4 | . . . . . . . . . . . 1 9 17 21 18 Protection 1 | . . . . . . 6 7 7 6 2 . . . . . Ballistic Gun 7 | . 28 28 21 14 9 7 7 7 8 5 . . . . . Ballistic Cannon 1 | . . . . . . . . . . . . 5 8 7 . Naked Turns 3 | . . . . . . . . . . 3 . . . . . Heaviest Build 47 | 12 13 13 19 19 26 35 37 37 38 47 20 44 38 40 25 Greatest Support 40 | 20 20 20 20 28 28 40 40 40 40 40 26 39 40 40 39 Greatest Overweight (x) 1 | . . . . . . . . . . 1 . 1 . . . Average Overweight (x) . | . . . . . . . . . . . . . . . . Largest Inventory Capacity 8 | 8 8 8 8 8 8 8 8 8 8 8 5 5 5 5 5 Average Capacity 6 | 7 8 8 8 8 8 8 8 8 8 6 5 5 5 5 5 Most Carried 8 | 6 8 8 8 8 8 8 8 8 7 8 5 5 5 5 4 Average Carried 6 | 3 6 8 7 7 6 7 7 8 6 5 3 4 4 4 3 Final Capacity 8 | 8 8 8 8 8 8 8 8 8 8 5 5 5 5 5 5 Final Carried 8 | 6 8 8 6 8 8 8 8 8 6 5 3 4 3 3 4 Class Distribution -------------------- 57% | Mutant 22% | Hacker-Scout 12% | Gunner 5% | Hacker-Mutant Dominant Class ---------------- Mutant | -10/Materials Mutant | -10/Mines Mutant | -10/Exiles Mutant | -9/Mines Mutant | -8/Materials Mutant | -7/Factory Mutant | -7/Lower Caves Mutant | -7/Lower Caves Gunner | -6/Factory Gunner | -5/Factory Mutant | -4/Factory Hacker-Scout | -3/Research Hacker-Scout | -2/Research Hacker-Scout | -2/Testing Hacker-Mutant | -1/Access Resources | -11 -10 -10 -10 -9 -8 -7 -7 -7 -6 -5 -4 -3 -2 -2 -1 ----------- Run | Scr Mat Min Exi Min Mat Fac Low Low Fac Fac Fac Res Res Tes Acc Matter Collected 1094 | 260 42 . . 40 . . 110 . 80 . 230 30 175 107 20 Remotely . | . . . . . . . . . . . . . . . . Salvage Created 1028 | . 103 . . 107 60 . 459 63 131 53 . 52 . . . Parts 60 | . 5 . . 12 4 . 23 5 5 3 . 3 . . . Haulers Intercepted . | . . . . . . . . . . . . . . . . Recyclers Shooed . | . . . . . . . . . . . . . . . . Parts Field Recycled . | . . . . . . . . . . . . . . . . Retrieved Matter . | . . . . . . . . . . . . . . . . Parts Self-Destructed 21 | . . . . . . . 19 2 . . . . . . . Prevented . | . . . . . . . . . . . . . . . . Kills | -11 -10 -10 -10 -9 -8 -7 -7 -7 -6 -5 -4 -3 -2 -2 -1 ------- Run | Scr Mat Min Exi Min Mat Fac Low Low Fac Fac Fac Res Res Tes Acc Combat Hostiles Destroyed 38 | . 2 . . 7 1 . 11 2 2 1 . 2 . . 10 Melee 1 | . . . . . . . . . . . . 1 . . . Guns 26 | . 2 . . 7 1 . 11 2 2 1 . . . . . Cannons 1 | . . . . . . . . . . . . 1 . . . AOE 10 | . . . . . . . . . . . . . . . 10 Classes Destroyed 8 | . 1 . . 1 1 . 2 1 . 1 . . . . 1 Worker 1 | . . . . . . . . . . . . . . . 1 Swarmer 22 | . . . . 7 . . 3 . . . . 2 . . 10 Grunt 6 | . 2 . . . . . 4 . . . . . . . . Duelist 1 | . . . . . . . 1 . . . . . . . . Sentry 4 | . . . . . 1 . 1 . 2 . . . . . . Hunter 1 | . . . . . . . . . . 1 . . . . . Programmer 1 | . . . . . . . . 1 . . . . . . . Thief 3 | . . . . . . . 2 1 . . . . . . . Best Kill Streak 9 | . 2 . . 4 1 . 9 1 1 1 . 1 . . 7 Combat Bots Only 9 | . 2 . . 4 1 . 9 1 1 1 . 1 . . 7 Max Kills in Single Turn 7 | . 1 . . 1 1 . 1 1 1 1 . 1 . . 7 Gunslinging . | . . . . . . . . . . . . . . . . Exploded 7 | . . . . . . . . . . . . . . . 7 Melee 1 | . . . . . . . . . . . . 1 . . . Uniques/NPCs Destroyed . | . . . . . . . . . . . . . . . . Combat | -11 -10 -10 -10 -9 -8 -7 -7 -7 -6 -5 -4 -3 -2 -2 -1 -------- Run | Scr Mat Min Exi Min Mat Fac Low Low Fac Fac Fac Res Res Tes Acc Damage Taken 8999 | . 118 . . 162 14 . 164 58 731 1831 19 1650 251 1126 2875 Core 3259 | . 26 . . 42 . . 19 . 52 852 . 228 144 292 1604 Absorbed by Shields . | . . . . . . . . . . . . . . . . Core Remaining (%) 80 | 100 . . . 72 100 . . 97 93 14 100 82 . 69 . Volleys Fired 36 | . 7 . . . . . . . 10 6 . 7 3 1 2 Largest 3 | . 2 . . . . . . . 1 3 . 3 3 3 1 Hottest 240 | . 40 . . . . . . . 28 166 . 187 240 240 30 Shots Fired 152 | . 14 . . 32 2 . 29 12 20 11 . 18 9 3 2 Gun 131 | . 14 . . 32 2 . 29 12 20 11 . 11 . . . Cannon 19 | . . . . . . . . . . . . 7 9 3 . Launcher 2 | . . . . . . . . . . . . . . . 2 Special . | . . . . . . . . . . . . . . . . Kinetic 136 | . 14 . . 32 2 . 29 12 20 6 . 13 6 2 . Thermal 14 | . . . . . . . . . . 5 . 5 3 1 . Explosive 2 | . . . . . . . . . . . . . . . 2 Electromagnetic . | . . . . . . . . . . . . . . . . Robot Hit Streak 11 | . 5 . . 4 6 . 11 3 9 10 . 3 1 . 2 Robot Miss Streak 5 | . 1 . . 5 . . 1 2 5 1 . 4 4 . . Penetration Max . | . . . . . . . . . . . . . . . . Secondary Targets 1 | . . . . . . . . . . 1 . . . . . Max Gunslinging Chain 1 | . . . . . . . . . . 1 . . . . . Autonomous 86 | . . . . 32 2 . 29 12 11 . . . . . . Shots Hit Robots 90 | . 10 . . 14 2 . 24 6 13 10 . 7 2 . 2 Core Hits 54 | . 5 . . 7 1 . 13 2 7 5 . 5 1 . 8 Critical Kills . | . . . . . . . . . . . . . . . . Critical Parts Destroyed . | . . . . . . . . . . . . . . . . Critical Strikes 2 | . . . . . . . . . 1 . . 1 . . . Destroy 1 | . . . . . . . . . 1 . . . . . . Blast 1 | . . . . . . . . . . . . 1 . . . Melee Attacks . | . . . . . . . . . . . . . . . . Impact . | . . . . . . . . . . . . . . . . Slashing . | . . . . . . . . . . . . . . . . Piercing . | . . . . . . . . . . . . . . . . Sneak Attacks . | . . . . . . . . . . . . . . . . Combat Hostiles . | . . . . . . . . . . . . . . . . Follow-up Attacks . | . . . . . . . . . . . . . . . . Damage Inflicted 5495 | . 124 . . 401 56 . 825 215 408 169 . 291 76 . 2930 Guns 2214 | . 124 . . 401 56 . 825 215 294 156 . 143 . . . Cannons 180 | . . . . . . . . . . . . 104 76 . . Explosions 2930 | . . . . . . . . . . . . . . . 2930 Melee . | . . . . . . . . . . . . . . . . Ramming 171 | . . . . . . . . . 114 13 . 44 . . . Kinetic 2289 | . 124 . . 401 56 . 825 215 294 81 . 217 76 . . Thermal 105 | . . . . . . . . . . 75 . 30 . . . Explosive 2930 | . . . . . . . . . . . . . . . 2930 Electromagnetic . | . . . . . . . . . . . . . . . . Impact . | . . . . . . . . . . . . . . . . Slashing . | . . . . . . . . . . . . . . . . Piercing . | . . . . . . . . . . . . . . . . Highest Corruption 6 | . . . . . . . . 2 1 6 . 4 1 3 . Average Corruption 2 | . . . . . . . . 2 1 4 . 3 1 1 . Corruption Purged . | . . . . . . . . . . . . . . . . Corruption Blocked . | . . . . . . . . . . . . . . . . Effects 14 | . . . . . . . . 1 . 2 . 5 3 3 . Message Errors 3 | . . . . . . . . . . . . . 2 1 . Matter Fused 5 | . . . . . . . . 1 . 1 . 1 . 2 . Heat Flow Errors 1 | . . . . . . . . . . 1 . . . . . Energy Discharges 3 | . . . . . . . . . . . . 3 . . . Data Loss (minor) 1 | . . . . . . . . . . . . 1 . . . Data Loss (major) 1 | . . . . . . . . . . . . . 1 . . Overload Shots . | . . . . . . . . . . . . . . . . Overflow Damage 694 | . . . . . . . . . 8 . . . . . 686 Projectiles . | . . . . . . . . . . . . . . . . Explosions 686 | . . . . . . . . . . . . . . . 686 Melee 8 | . . . . . . . . . 8 . . . . . . Knockbacks 2 | . . . . . . . . . 1 . . . 1 . . Impact 1 | . . . . . . . . . 1 . . . . . . Kinetic 1 | . . . . . . . . . . . . . 1 . . Secondary . | . . . . . . . . . . . . . . . . Self-Inflicted Damage 28 | . . . . . . . . . . 6 . 22 . . . Shots . | . . . . . . . . . . . . . . . . Rammed 5 | . . . . . . . . . . 4 . 1 . . . Targets Rammed 23 | . . . . . . . . . 18 4 . 1 . . . Kicked 18 | . . . . . . . . . 18 . . . . . . Crushed . | . . . . . . . . . . . . . . . . Highest Temperature 414 | . 9 . . . . . . . 5 93 . 353 414 140 . Average Temperature 136 | . 3 . . . . . . . 4 48 . 178 205 75 . Received Heat Transfer 639 | . 93 . . . . . 27 . 84 189 . 75 45 108 18 Effects 1 | . . . . . . . . . . . . . 1 . . Shutdowns 1 | . . . . . . . . . . . . . 1 . . Siege Activations . | . . . . . . . . . . . . . . . . Robots Corrupted . | . . . . . . . . . . . . . . . . Combat Hostiles . | . . . . . . . . . . . . . . . . Parts Fried . | . . . . . . . . . . . . . . . . Impact Corruptions 1 | . . . . . . . . . 1 . . . . . . Robots Melted . | . . . . . . . . . . . . . . . . Combat Hostiles . | . . . . . . . . . . . . . . . . Parts Melted 1 | . . . . . . . . . . 1 . . . . . Heat Transferred 185 | . . . . . . . . . . 148 . 37 . . . Parts Sabotaged 2 | . . . . . . . . . . . . . . 2 . Parts Stolen . | . . . . . . . . . . . . . . . . Parts Stripped . | . . . . . . . . . . . . . . . . Power Chain Reactions . | . . . . . . . . . . . . . . . . Missiles Intercepted . | . . . . . . . . . . . . . . . . Alert | -11 -10 -10 -10 -9 -8 -7 -7 -7 -6 -5 -4 -3 -2 -2 -1 ------- Run | Scr Mat Min Exi Min Mat Fac Low Low Fac Fac Fac Res Res Tes Acc Peak Influence 1655 | . 106 40 . 138 83 37 . . 204 165 136 428 492 1655 1317 Initial 1100 | . . 40 . . 53 37 . . 18 99 75 . 252 228 1100 Average 226 | . 47 40 . 123 66 37 . . 90 83 88 68 381 1610 1122 Maximum Alert Level 5 | . . . . . . . . . 1 . . 2 2 5 4 Low Security (%) 79 | 100 100 100 . 100 100 100 . . 98 100 100 88 . . . Level 1 7 | . . . . . . . . . 1 . . 10 61 . . Level 2 3 | . . . . . . . . . . . . 1 38 . . Level 3 . | . . . . . . . . . . . . . . . . Level 4 5 | . . . . . . . . . . . . . . . 99 Level 5 . | . . . . . . . . . . . . . . . . High Security . | . . . . . . . . . . . . . . . . Max Security 3 | . . . . . . . . . . . . . . 99 . Squads Dispatched 14 | . . . . . . . . . 1 3 . 2 1 6 1 Investigation 2 | . . . . . . . . . . 1 . . . . 1 Extermination 2 | . . . . . . . . . . 1 . 1 . . . Reinforcement 4 | . . . . . . . . . 1 1 . 1 1 . . Assault 6 | . . . . . . . . . . . . . . 6 . Garrison . | . . . . . . . . . . . . . . . . Intercept . | . . . . . . . . . . . . . . . . Searches Triggered 1 | . . . . . . . . . . . . . 1 . . Construction Impeded 1 | . . . . . . . . . 1 . . . . . . Haulers Reinforced . | . . . . . . . . . . . . . . . . Active Scanning Responses . | . . . . . . . . . . . . . . . . Cargo Convoy Interrupts . | . . . . . . . . . . . . . . . . Stealth | -11 -10 -10 -10 -9 -8 -7 -7 -7 -6 -5 -4 -3 -2 -2 -1 --------- Run | Scr Mat Min Exi Min Mat Fac Low Low Fac Fac Fac Res Res Tes Acc Distress Signals 2 | . . . . . . . . . 1 . . . 1 . . Communications Jammed 43 | . . . . . . . . . . . . 17 24 2 . Distress Signals 43 | . . . . . . . . . . . . 17 24 2 . Times Spotted 177 | . 5 . . 10 . . 10 2 6 20 3 35 15 48 23 Peak Tracking Total 36 | . 3 . . 4 1 . 9 1 3 10 2 13 6 36 15 Tactical Retreats 18 | . . . . . . . . . 1 4 . 5 3 1 4 Traps | -11 -10 -10 -10 -9 -8 -7 -7 -7 -6 -5 -4 -3 -2 -2 -1 ------- Run | Scr Mat Min Exi Min Mat Fac Low Low Fac Fac Fac Res Res Tes Acc Traps Triggered 6 | . . . . . . . . . . . 1 3 1 . 1 Indirectly . | . . . . . . . . . . . . . . . . Trap Hack Attempts . | . . . . . . . . . . . . . . . . Triggered . | . . . . . . . . . . . . . . . . Disarmed . | . . . . . . . . . . . . . . . . Reprogrammed . | . . . . . . . . . . . . . . . . Reused . | . . . . . . . . . . . . . . . . Traps Extracted . | . . . . . . . . . . . . . . . . Installed . | . . . . . . . . . . . . . . . . Triggered . | . . . . . . . . . . . . . . . . Machines | -11 -10 -10 -10 -9 -8 -7 -7 -7 -6 -5 -4 -3 -2 -2 -1 ---------- Run | Scr Mat Min Exi Min Mat Fac Low Low Fac Fac Fac Res Res Tes Acc Machines Disabled 3 | . . . . 1 . . . . 1 . . . . 1 . Max in Single Turn 1 | . . . . 1 . . . . 1 . . . . 1 . Garrison Access 1 | . . . . . . . . . . . . . . . 1 Machines Sabotaged . | . . . . . . . . . . . . . . . . Garrisons Compromised . | . . . . . . . . . . . . . . . . Overloaded Fab Kills . | . . . . . . . . . . . . . . . . Hacking | -11 -10 -10 -10 -9 -8 -7 -7 -7 -6 -5 -4 -3 -2 -2 -1 --------- Run | Scr Mat Min Exi Min Mat Fac Low Low Fac Fac Fac Res Res Tes Acc Machines Accessed 25 | . 3 . 3 1 2 . 2 . 1 3 1 3 3 . 3 Terminals 17 | . 3 . . . 2 . . . 1 2 1 3 3 . 2 Fabricators 1 | . . . . . . . . . . 1 . . . . . Repair Stations . | . . . . . . . . . . . . . . . . Recycling Units . | . . . . . . . . . . . . . . . . Scanalyzers . | . . . . . . . . . . . . . . . . Garrison Access 1 | . . . . . . . . . . . . . . . 1 Total Hacks 83 | . 3 . 40 1 2 . 8 . 2 5 2 7 7 . 6 Successful 62 | . 2 . 40 1 . . 8 . 1 1 2 2 3 . 2 Failed 21 | . 1 . . . 2 . . . 1 4 . 5 4 . 4 Catastrophic 6 | . 1 . . . 1 . . . . 1 . 1 2 . . Database Lockouts . | . . . . . . . . . . . . . . . . Manual 23 | . 2 . 1 . 2 . . . 2 2 1 6 5 . 2 Terminals 30 | . 3 . . . 2 . . . 2 4 2 7 7 . 3 Fabricators 1 | . . . . . . . . . . 1 . . . . . Repair Stations . | . . . . . . . . . . . . . . . . Recycling Units . | . . . . . . . . . . . . . . . . Scanalyzers . | . . . . . . . . . . . . . . . . Garrison Access 3 | . . . . . . . . . . . . . . . 3 Terminal Hacks 57 | . 2 . 40 1 . . 8 . . . 2 . 3 . 1 Record 51 | . . . 40 . . . 7 . . . . . 3 . 1 Open Door 2 | . . . . 1 . . 1 . . . . . . . . Branch Access Points 1 | . 1 . . . . . . . . . . . . . . Alert Level 1 | . . . . . . . . . . . 1 . . . . Unreport Threat 1 | . . . . . . . . . . . 1 . . . . Registered Components 1 | . 1 . . . . . . . . . . . . . . Fabricator Hacks 1 | . . . . . . . . . . 1 . . . . . Network Status 1 | . . . . . . . . . . 1 . . . . . Repair Station Hacks . | . . . . . . . . . . . . . . . . Recycling Unit Hacks . | . . . . . . . . . . . . . . . . Scanalyzer . | . . . . . . . . . . . . . . . . Garrison Access Hacks 1 | . . . . . . . . . . . . . . . 1 Seal Access 1 | . . . . . . . . . . . . . . . 1 Unauthorized Hacks 3 | . . . . . . . . . 1 . . 2 . . . Terminals 3 | . . . . . . . . . 1 . . 2 . . . Botnet 3 | . . . . . . . . . 1 . . 2 . . . Fabricators . | . . . . . . . . . . . . . . . . Repair Stations . | . . . . . . . . . . . . . . . . Recycling Units . | . . . . . . . . . . . . . . . . Scanalyzers . | . . . . . . . . . . . . . . . . Garrison Access . | . . . . . . . . . . . . . . . . Data Cores Recovered . | . . . . . . . . . . . . . . . . Used . | . . . . . . . . . . . . . . . . Hacking Detections 18 | . 3 . . . 2 . . . 1 2 1 3 3 . 3 Full Trace Events 1 | . . . . . . . . . . 1 . . . . . Feedback Events 1 | . . . . . . . . . . 1 . . . . . Corruption 1 | . . . . . . . . . . 1 . . . . . Feedback Blocked . | . . . . . . . . . . . . . . . . Robot Schematics Acquired . | . . . . . . . . . . . . . . . . Robots Built . | . . . . . . . . . . . . . . . . Authchips . | . . . . . . . . . . . . . . . . Time . | . . . . . . . . . . . . . . . . Total Robot Build Rating . | . . . . . . . . . . . . . . . . Part Schematics Acquired . | . . . . . . . . . . . . . . . . Parts Built . | . . . . . . . . . . . . . . . . Authchips . | . . . . . . . . . . . . . . . . Time . | . . . . . . . . . . . . . . . . Total Part Build Rating . | . . . . . . . . . . . . . . . . Parts Repaired . | . . . . . . . . . . . . . . . . Time . | . . . . . . . . . . . . . . . . Parts Recycled . | . . . . . . . . . . . . . . . . Recycled Matter . | . . . . . . . . . . . . . . . . Retrieved Matter . | . . . . . . . . . . . . . . . . Retrieved Components . | . . . . . . . . . . . . . . . . Parts Scanalyzed . | . . . . . . . . . . . . . . . . Part Schematics Acquired . | . . . . . . . . . . . . . . . . Parts Damaged . | . . . . . . . . . . . . . . . . Bothacking | -11 -10 -10 -10 -9 -8 -7 -7 -7 -6 -5 -4 -3 -2 -2 -1 ------------ Run | Scr Mat Min Exi Min Mat Fac Low Low Fac Fac Fac Res Res Tes Acc Used RIF Installer . | . . . . . . . . . . . . . . . . Robots Hacked . | . . . . . . . . . . . . . . . . Non-combat . | . . . . . . . . . . . . . . . . Combat . | . . . . . . . . . . . . . . . . Robot Hacks Applied . | . . . . . . . . . . . . . . . . Relay Couplers Released . | . . . . . . . . . . . . . . . . Fabnet Peak Effective % . | . . . . . . . . . . . . . . . . Robots Rewired . | . . . . . . . . . . . . . . . . Allies Hacked . | . . . . . . . . . . . . . . . . Hacks Repelled . | . . . . . . . . . . . . . . . . Allies | -11 -10 -10 -10 -9 -8 -7 -7 -7 -6 -5 -4 -3 -2 -2 -1 -------- Run | Scr Mat Min Exi Min Mat Fac Low Low Fac Fac Fac Res Res Tes Acc Total Allies 3 | . . . . . . . . . . . 3 . . . . Largest Group 3 | . . . . . . . . . . . 3 1 . . . Highest-Rated Group 138 | . . . . . . . . . . . 138 46 . . . Highest-Rated Ally 46 | . . . . . . . . . . . 46 46 . . . Total Orders 1 | . . . . . . . . . . . . . . . 1 EXPLORE 1 | . . . . . . . . . . . . . . . 1 Ally Attacks 27 | . . . . . . . . . . . 27 . . . . Total Damage 663 | . . . . . . . . . . . 663 . . . . Kills 3 | . . . . . . . . . . . 3 . . . . Allies Corrupted . | . . . . . . . . . . . . . . . . Allies Melted . | . . . . . . . . . . . . . . . . Intel | -11 -10 -10 -10 -9 -8 -7 -7 -7 -6 -5 -4 -3 -2 -2 -1 ------- Run | Scr Mat Min Exi Min Mat Fac Low Low Fac Fac Fac Res Res Tes Acc Robot Analysis Total . | . . . . . . . . . . . . . . . . Derelict Logs Recovered 5 | . . 1 . 2 . . 2 . . . . . . . . Drone Launches 2 | . . . . . . . . . . . . . . . 2 Drone Recoveries 2 | . . . . . . . . . . . . . . . 2 Exploration | -11 -10 -10 -10 -9 -8 -7 -7 -7 -6 -5 -4 -3 -2 -2 -1 ------------- Run | Scr Mat Min Exi Min Mat Fac Low Low Fac Fac Fac Res Res Tes Acc Turns Passed 4897 | 70 270 92 321 550 204 144 593 78 396 493 245 735 318 155 233 Spaces Moved 5273 | 49 197 77 265 463 205 107 485 55 289 460 284 911 730 363 333 Core 469 | 5 . . . . . . . . . 292 . . . . 172 Treads 20 | . . . . . . . . . . 19 . . . . 1 Legs 2082 | 44 197 77 265 414 . 107 485 55 289 149 . . . . . Wheels 264 | . . . . 49 205 . . . . . 10 . . . . Hover 1 | . . . . . . . . . . . . . . . 1 Flight 2437 | . . . . . . . . . . . 274 911 730 363 159 Fastest Speed 37 | 50 120 120 120 95 95 120 120 120 120 50 44 37 37 39 45 Average Speed 78 | 112 120 120 120 117 95 120 120 120 120 88 62 39 37 39 59 Slowest Speed 190 | 120 120 120 120 120 95 120 120 120 120 190 90 117 39 45 145 Overloaded Moves . | . . . . . . . . . . . . . . . . Propulsion Burnouts . | . . . . . . . . . . . . . . . . Robots Hopped 39 | . . . . . . . . . . . 2 18 6 5 8 Cave-ins Triggered . | . . . . . . . . . . . . . . . . Exploration Rate (%) 30 | 4 31 29 62 86 20 3 64 19 10 15 12 30 23 58 19 Regions Visited 15 Branch Regions 6 Pre-discovered Areas 3 | . . . 1 . . . 2 . . . . . . . . Known Exits Taken 6 | . 1 . . . 1 1 1 1 1 . . . . . . Unknown Exits Taken 9 | 1 . 1 1 1 . . . . . 1 1 1 1 1 . Scrap Searched 3 | . . . . 2 . . 1 . . . . . . . . Spaces Dug . | . . . . . . . . . . . . . . . . Terrain Destroyed 93 | . . . . 33 . . 19 10 9 . . 8 6 . 8 Melee . | . . . . . . . . . . . . . . . . Projectile 85 | . . . . 33 . . 19 10 9 . . 8 6 . . AOE 8 | . . . . . . . . . . . . . . . 8 Terrain Rammed . | . . . . . . . . . . . . . . . . Walls Destroyed . | . . . . . . . . . . . . . . . . Machines Disabled . | . . . . . . . . . . . . . . . . Actions | -11 -10 -10 -10 -9 -8 -7 -7 -7 -6 -5 -4 -3 -2 -2 -1 --------- Run | Scr Mat Min Exi Min Mat Fac Low Low Fac Fac Fac Res Res Tes Acc Total 5938 | 60 216 76 270 469 214 121 497 66 324 537 350 1251 762 368 357 Wait 463 | . 8 . . . . 6 5 11 5 36 35 321 20 2 14 Move 5186 | 48 196 76 264 462 204 106 484 54 288 459 279 878 717 354 317 Hop 34 | . . . . . . . . . . . 2 15 6 3 8 Pick Up 44 | 6 3 . 1 3 3 3 3 . . 6 6 5 3 2 . Fast Attach 52 | 6 1 . . 1 2 . 1 . . 3 7 13 7 2 9 Attach 35 | . . . 1 . 3 2 . . 2 6 10 3 2 3 3 Detach 19 | . . . . . 1 . . . . 6 4 2 1 1 4 Swap 9 | . . . . 1 . 3 . 1 1 3 . . . . . Drop 38 | . 1 . 4 2 1 1 4 . . 8 7 7 3 . . Fire 36 | . 7 . . . . . . . 10 6 . 7 3 1 2 Melee . | . . . . . . . . . . . . . . . . Ram 3 | . . . . . . . . . . 3 . . . . . Kick 18 | . . . . . . . . . 18 . . . . . . Crush 1 | . . . . . . . . . . 1 . . . . . Escape Stasis . | . . . . . . . . . . . . . . . . Rewire . | . . . . . . . . . . . . . . . . Trap . | . . . . . . . . . . . . . . . . Miscellaneous . | . . . . . . . . . . . . . . . . Route ------- -11/Scrapyard -10/Materials (discovered 2 exits: *Min x2) -10/Mines -10/Exiles -9/Mines -8/Materials -7/Factory (discovered 2 exits: *Fac / *Low) -7/Lower Caves -7/Lower Caves -6/Factory (discovered 3 exits: *Fac x3) -5/Factory -4/Factory -3/Research -2/Research -2/Testing -1/Access History --------- Turn | Location | Event 2 | -11/Scrapyard | Discovered new exit (range 16) 71 | -11/Scrapyard | Entered Materials 94 | -10/Materials | Identified exit to Mines 314 | -10/Materials | Build established: Mutant 341 | -10/Materials | Entered Mines 387 | -10/Mines | Learned Materials stockpile data 427 | -10/Mines | Deemed a non-threat by the Exiles lab entrance 428 | -10/Mines | Discovered new exit (range 5) 433 | -10/Mines | Entered Exiles 461 | -10/Exiles | Met 8R-AWN 483 | -10/Exiles | Met EX-HEX 516 | -10/Exiles | Met EX-BIN 529 | -10/Exiles | Aligned with FarCom system 531 | -10/Exiles | Given EX-Vault access code 591 | -10/Exiles | Opened EX-Vault 599 | -10/Exiles | Found Prototype Ballistic Gun 601 | -10/Exiles | Identified AWS/Gauss 637 | -10/Exiles | Warned to stay clear of 0b10 Research branches 673 | -10/Exiles | Met EX-DEC 681 | -10/Exiles | Learned location of Zion (-6) 742 | -10/Exiles | Discovered new exit (range 12) 754 | -10/Exiles | Left Exiles lab with AWS/Gauss 754 | -10/Exiles | Entered Mines 883 | -9/Mines | Found the Drone Emporium 885 | -9/Mines | Met a Derelict bent on vengeance 887 | -9/Mines | Learned location of 1 exit from Proximity Caves 958 | -9/Mines | Learned Materials stockpile data 969 | -9/Mines | Received a Rocket Launcher from a helpful Derelict 1295 | -9/Mines | Discovered new exit (range 10) 1304 | -9/Mines | Entered Materials 1304 | -8/Materials | Evolved 4 slots: Propulsion x2, Utility x2 1432 | -8/Materials | Discovered new exit (range 10) 1443 | -8/Materials | Identified exit to Factory 1508 | -8/Materials | Entered Factory 1508 | -7/Factory | Evolved 2 slots: Utility x2 1558 | -7/Factory | Discovered new exit (range 4) 1561 | -7/Factory | Discovered new exit (range 9) 1561 | -7/Factory | Identified exit to Lower Caves 1570 | -7/Factory | Identified exit to Factory 1652 | -7/Factory | Entered Lower Caves 1714 | -7/Lower Caves | Learned location of Extension (-4) 1714 | -7/Lower Caves | Learned location of Armory (-4) 1714 | -7/Lower Caves | Learned Research security intel 1714 | -7/Lower Caves | Learned Armory terminal intel 1714 | -7/Lower Caves | Learned Extension garrison access intel 1910 | -7/Lower Caves | Learned Factory interactive machine intel 1993 | -7/Lower Caves | Attracted the attention of an 0b10 outpost 2063 | -7/Lower Caves | Destroyed 9 combat bots 2090 | -7/Lower Caves | Learned Factory garrison access intel 2203 | -7/Lower Caves | Discovered new exit (range 10) 2244 | -7/Lower Caves | Identified exit to Lower Caves 2245 | -7/Lower Caves | Entered another Lower Caves area 2323 | -7/Lower Caves | Entered Factory 2323 | -6/Factory | Evolved 2 slots: Utility x1, Weapon x1 2324 | -6/Factory | Identified exit to Factory 2325 | -6/Factory | Loaded intel: 52 interactive machine locations 2326 | -6/Factory | Loaded intel: 4 garrison access locations 2719 | -6/Factory | Entered another Factory area 2719 | -5/Factory | Evolved 2 slots: Utility x1, Weapon x1 2777 | -5/Factory | Build established: Gunner 3070 | -5/Factory | Spotted B-75 Beast 3089 | -5/Factory | Lost 15 parts (1p5n6u3w) 3134 | -5/Factory | Core integrity fell below 50% 3205 | -5/Factory | Discovered new exit (range 15) 3210 | -5/Factory | Core integrity fell below 20% 3212 | -5/Factory | Entered another Factory area 3212 | -4/Factory | Evolved 2 slots: Power x1, Utility x1 3293 | -4/Factory | Allied Derelicts emerged from ambush trap array 3328 | -4/Factory | Build established: Mutant 3444 | -4/Factory | Discovered new exit (range 8) 3457 | -4/Factory | Entered Research 3457 | -3/Research | Accompanied by 1 ally 3457 | -3/Research | Evolved 2 slots: Utility x2 3790 | -3/Research | Build established: Hacker-Scout 4102 | -3/Research | Lost 5 parts (3u2w) 4108 | -3/Research | Spotted B-86 Titan 4128 | -3/Research | Found Prototype Processor 4128 | -3/Research | Identified Spectral Analyzer 4184 | -3/Research | Discovered new exit (range 24) 4192 | -3/Research | Entered another Research area 4192 | -2/Research | Evolved 2 slots: Utility x2 4307 | -2/Research | Found Prototype Device 4307 | -2/Research | Identified Beam Splitter 4442 | -2/Research | Search patrols dispatched 4507 | -2/Research | Discovered new exit (range 8) 4510 | -2/Research | Entered Testing 4511 | -2/Testing | Maximum security lockdown engaged 4537 | -2/Testing | Found Prototype Launcher 4575 | -2/Testing | Spotted Striker 4622 | -2/Testing | Found Prototype Device 4622 | -2/Testing | Identified Exp. Focal Shield 4624 | -2/Testing | Found Exp. Focal Shield 4658 | -2/Testing | Discovered new exit (range 16) 4665 | -2/Testing | Entered Access 4665 | -1/Access | Evolved 2 slots: Propulsion x2 4695 | -1/Access | Lost 8 parts (1p2n4u1w) 4788 | -1/Access | Identified Z-bomb Delivery System 4868 | -1/Access | Core integrity fell below 50% 4879 | -1/Access | Core integrity fell below 20% 4898 | -1/Access | Destroyed by S-43 Plague with Heavy Machine Gun Last Messages --------------- 04871_ U-05 Engineer destroyed. 04872_ Acquired Wheel. 04873_ System Shield destroyed. 04873_ K-01 Serf collects debris. 04874_ Wheel destroyed. 04876_ Connecting with Terminal... >>Query(Wolf 359 System) A red dwarf star system, fourth nearest from the Sun at 2.39 parsecs. Destination of the [ISCS Leo]. 04877_ K-01 Serf collects debris. 04892_ U-05 Engineer destroyed. 04893_ Acquired 20 matter. 04895_ S-43 Plague destroyed. 04895_ Destroyed Xenon Bombardment Thruster. 04895_ S-43 Plague destroyed. 04895_ Destroyed Lgt. Antimatter Reactor. 04895_ S-43 Plague destroyed. 04895_ Destroyed Xenon Bombardment Thruster. 04895_ S-43 Plague destroyed. 04896_ The unstable cave ceiling collapses. Map ----- +----------------------------------------------------+ | ???????????????????????# #???????????## ##???# | | ???????? ????????????# #???????????# ##### | | ?????? ??????????# #???????????# "" | | ????? ????????# #???????????# "T | | ????? ######## #???????????# ! | | ????" #??######???# ##### | | ???? #?? #???###+###???# | | ???? sss#? !! !#?????????????? | | ???? ? !! #?????????????? | | ???? ####### #* #?????????????? | | ?????#/########???????? #?????????????? | | ???????????????????????# = #?????????????? | | ???????????????????????# ########?????????????? | | ???????????????????????# #?????????????????????? | | ???????????????s???????# #?????????????????????? | | ???????????????????????# ####??????????????????? | | ???????????????????????# +??????????????????? | | ???????????????????????# ####??????????????????? | | ???????????????????????# #?????????????????????? | | ???????????????????????## #?????????????????????? | | ????????????????????????#! ####??????????????????? | | ????????????????????????# | +??????????????????? | | ????????????????????????#!#####??????????????????? | | ????????????????????????# #??????????????????????? | | ????????????????????????# #??????????????????????? | | ????????????????????????#@#??????????????????????? | | ????????????????????????#/#??????????????????????? | | ???????????????????????? ?????????????g????????? | | ???????????????????????? ??????????????????????? | | ??????????????????????? ?????????????????????? | | ??????????????????????? ?????????????????????? | | ?????????????????????? ! ????????????????????? | | ??????????????????????#######????????????????????? | | ?????????????????????????????????????????????????? | | ?????????????????????????????????????????????????? | | ?????????????????????????????????????????????????? | | ???????????????w?????????????????????????????????? | | ?????????????????????????????????????????????????? | | ?????????????????????????????????????????????????? | | ?????????????????????????????????????????????????? | | ?????????????????????????????????????????????????? | | ?????????????????????????????????????????????????? | | ?????????????????????????????????????????????????? | | ?????????????????????????????????????????????????? | | ?????????????????????????????????????????????????? | | ?????????????????????????????????????????????????? | | ?????????????????????????????????????????????????? | | ?????????????????????????????????????????????????? | | ?????????????????????????????????????????????????? | | ?????????????????????????????????????????????????? | +----------------------------------------------------+ Best States ------------- Heat Dissipation 52 Coolant Potential 50 Energy Generation 45 Energy Capacity 410 Matter Stores 300 Matter Capacity 300 Sight Range 24 Robot Scan Range 18 Terrain Scan Density 10 Jamming Range 16 Additional Mass Support 9 Corruption Block 20 Armor Coverage 225 Resistance: KI 30 Evasion (%) 74 Targeting Accuracy 5 Core Analysis 6 Recoil Reduction 1 Matter Filtering 30 Kinecelleration 30 Offensive Hacking 44 Defensive Hacking 10 Item Schematics ----------------- None Robot Schematics ------------------ None Fabricated ------------ Nothing Alien Tech Used ----------------- None Achievements -------------- Hard Hitter No Signal Slippery One Streaker Universal Adapter Challenges ------------ None Game ------ Seed BiometalBottomlessRedirector Manual? 0 Play Time 02:00:54 Cumulative 52.9 hours Start 2022.05.15 @ 21:51:21 End 2022.05.17 @ 22:15:03 Sessions 3 Manual Loads 0 Difficulty Rogue Special Mode None Game No. 36 Rogue 17 Adventurer 16 Explorer 3 Win Type - Total 2 Types 2/0/0/0/0/0/0/0/0 Lore% 33 Gallery% 42 Achievement% 34 Wizard Run 0 Options --------- ASCII 1 Keyboard 1 Movement Numpad Keybinds 0 Fullscreen 1 Font 18/TerminusBold Map View 76x50 Tactical HUD 1 Map Filters NONE Filters NONE Steam X RUN: 80f18110-cfff-43ff-b0bd-66a968aaf7d6